[Event "SRB-ch Semifinal 2022"]
[Site "Paracin"]
[Date "2022.03.17"]
[Round "1.5"]
[White "Stanojevic, Ilija"]
[Black "Stankovic, Milos"]
[Result "1/2-1/2"]
[ECO "E01"]
[WhiteElo "2155"]
[BlackElo "2412"]
[Annotator "ChessBase"]
[PlyCount "65"]
[EventDate "2022.03.17"]
[EventType "swiss"]
[EventCountry "SRB"]
[SourceTitle "playchess.com"]
[Source "ChessBase"]
[SourceQuality "1"]
[TimeControl "40/5400+30:1800+30"]

1. d4 {[%emt 0:00:07]} Nf6 {[%emt 0:01:09]} 2. c4 {[%emt 0:00:26]} e6 {[%emt 0:01:32]} 3. g3 {[%emt 0:00:34]} d5 {[%emt 0:03:33]} 4. Bg2 {[%emt 0:00:37]} Bb4+ {[%emt 0:01:36]} 5. Nd2 {[%emt 0:00:43]} a5 {[%emt 0:01:22]} 6. Ngf3 {[%emt 0:02:22]} O-O {[%emt 0:01:31]} 7. O-O {[%emt 0:00:39]} b6 {[%emt 0:01:21]} 8. cxd5 {[%emt 0:04:49]} exd5 {[%emt 0:04:31]} 9. Ne5 {[%emt 0:01:47]} Bb7 {[%emt 0:01:34]} 10. Ndf3 {[%emt 0:02:42]} Ne4 {[%emt 0:07:34]} 11. Bf4 {[%emt 0:12:28]} a4 {[%emt 0:10:17]} 12. a3 {[%emt 0:20:00]} Bd6 {[%emt 0:01:00]} 13. Nd2 {[%emt 0:17:46]} Nd7 {[%emt 0:27:03]} 14. Nxe4 {[%emt 0:13:40]} dxe4 {[%emt 0:03:03]} 15. Nxd7 {[%emt 0:00:12]} Qxd7 {[%emt 0:00:10]} 16. Bxd6 {[%emt 0:00:15]} cxd6 {[%emt 0:02:20]} 17. Qd2 {[%emt 0:02:53]} Qb5 {[%emt 0:01:17]} 18. e3 {[%emt 0:02:41]} Rfc8 {[%emt 0:02:11]} 19. Rfc1 {[%emt 0:00:35]} Bd5 {[%emt 0:03:16]} 20. Bf1 {[%emt 0:01:18]} Qb3 {[%emt 0:00:35]} 21. Rc3 {[%emt 0:07:21]} Rxc3 {[%emt 0:01:11]} 22. Qxc3 {[%emt 0:00:05]} Qxc3 {[%emt 0:00:57]} 23. bxc3 {[%emt 0:00:06]} Rc8 {[%emt 0:00:19]} 24. Rc1 {[%emt 0:00:14]} Kf8 {[%emt 0:02:12]} 25. Bb5 {[%emt 0:01:31]} Bb3 {[%emt 0:00:35]} 26. Kf1 {[%emt 0:00:52]} Ke7 {[%emt 0:01:19]} 27. Ke2 {[%emt 0:00:48]} d5 {[%emt 0:01:05]} 28. Kd2 {[%emt 0:00:16]} f5 {[%emt 0:00:22]} 29. h4 {[%emt 0:01:10]} Kf6 {[%emt 0:00:47]} 30. Be2 {[%emt 0:01:27]} h6 {[%emt 0:01:36]} 31. Rb1 {[%emt 0:00:53]} Rb8 {[%emt 0:01:10]} 32. Bd1 {[%emt 0:01:13]} Bxd1 {[%emt 0:00:10]} 33. Kxd1 {[%emt 0:00:10]} 1/2-1/2

[Event "SRB-ch Semifinal 2022"]
[Site "Paracin"]
[Date "2022.03.17"]
[Round "1.8"]
[White "Zivkovic, Nemanja"]
[Black "Radisavljevic, Dalibor"]
[Result "1-0"]
[ECO "B31"]
[WhiteElo "2380"]
[BlackElo "2150"]
[Annotator "ChessBase"]
[PlyCount "113"]
[EventDate "2022.03.17"]
[EventType "swiss"]
[EventCountry "SRB"]
[SourceTitle "playchess.com"]
[Source "ChessBase"]
[SourceQuality "1"]
[TimeControl "40/5400+30:1800+30"]

1. e4 {[%emt 0:00:03]} c5 {[%emt 0:00:16]} 2. Nf3 {[%emt 0:00:40]} Nc6 {[%emt 1:31:14]} 3. Bb5 {[%emt 0:07:11]} g6 {[%emt 0:00:00]} 4. O-O {[%emt 0:00:50]} Bg7 {[%emt 0:01:00]} 5. Re1 {[%emt 0:04:23]} Nf6 {[%emt 0:00:00]} 6. c3 {[%emt 0:04:30]} O-O {[%emt 0:00:00]} 7. h3 {[%emt 0:04:50]} d5 {[%emt 0:00:00]} 8. e5 {[%emt 0:02:08]} Ne8 {[%emt 0:00:00]} 9. d4 {[%emt 0:00:41]} cxd4 {[%emt 0:00:00]} 10. cxd4 {[%emt 0:00:03]} Nc7 {[%emt 0:03:00]} 11. Bxc6 {[%emt 0:05:50]} bxc6 {[%emt 0:00:00]} 12. Nc3 {[%emt 0:00:22]} f6 {[%emt 0:01:00]} 13. Na4 {[%emt 0:14:02]} fxe5 {[%emt 0:00:30]} 14. Nxe5 {[%emt 0:06:16]} Qd6 {[%emt 0:00:00]} 15. Be3 {[%emt 0:46:11]} Ne6 {[%emt 0:00:00]} 16. Rc1 {[%emt 0:00:00]} Bd7 {[%emt 0:00:00]} 17. Nc5 {[%emt 0:00:00]} Nxc5 {[%emt 0:00:00]} 18. Rxc5 {[%emt 0:01:30]} Rf5 {[%emt 0:00:00]} 19. b4 {[%emt 0:00:00]} Bxe5 {[%emt 0:00:00]} 20. dxe5 {[%emt 0:00:00]} Rxe5 {[%emt 0:00:00]} 21. Bd4 {[%emt 0:00:00]} Rxe1+ {[%emt 0:00:00]} 22. Qxe1 {[%emt 0:00:00]} Bf5 {[%emt 0:00:00]} 23. Be5 {[%emt 0:00:00]} Qd7 {[%emt 0:00:00]} 24. Qc3 {[%emt 0:00:00]} Rd8 {[%emt 0:00:00]} 25. Qd4 {[%emt 0:00:00]} Qe6 {[%emt 0:00:25]} 26. Rc3 {[%emt 0:00:00]} g5 {[%emt 0:02:14]} 27. Re3 {[%emt 0:00:00]} Rd7 {[%emt 0:01:11]} 28. g4 {[%emt 0:01:00]} Bg6 {[%emt 0:00:21]} 29. Kg2 {[%emt 0:00:17]} Be4+ {[%emt 0:01:23]} 30. f3 {[%emt 0:00:01]} Bg6 {[%emt 0:00:43]} 31. Rc3 {[%emt 0:01:54]} Rb7 {[%emt 0:00:22]} 32. Re3 {[%emt 0:00:59]} a6 {[%emt 0:00:28]} 33. a3 {[%emt 0:00:34]} Rb5 {[%emt 0:01:50]} 34. Bh8 {[%emt 0:01:38]} Qf7 {[%emt 0:00:24]} 35. Rc3 {[%emt 0:00:09]} h5 {[%emt 0:01:04]} 36. Rxc6 {[%emt 0:00:18]} hxg4 {[%emt 0:00:09]} 37. hxg4 {[%emt 0:00:04]} Rb8 {[%emt 0:00:51]} 38. Be5 {[%emt 0:00:11]} Ra8 {[%emt 0:00:29]} 39. Qe3 {[%emt 0:00:12]} Qe8 {[%emt 0:00:34]} 40. Rc1 {[%emt 0:00:50]} Rc8 {[%emt 0:00:29]} 41. Rh1 {[%emt 0:30:02]} Rc2+ {[%emt 0:30:29]} 42. Kg3 {[%emt 0:00:02]} Qb5 {[%emt 0:00:00]} 43. Qxg5 {[%emt 0:00:00]} Kf7 {[%emt 0:00:00]} 44. Bd4 {[%emt 0:00:00]} Re2 {[%emt 0:00:00]} 45. Rh6 {[%emt 0:00:00]} Qb8+ {[%emt 0:00:00]} 46. f4 {[%emt 0:00:00]} Qd6 {[%emt 0:00:00]} 47. Be5 {[%emt 0:00:00]} Qb6 {[%emt 0:00:00]} 48. Qf5+ {[%emt 0:00:00]} Bxf5 {[%emt 0:00:00]} 49. Rxb6 {[%emt 0:00:00]} Bd3 {[%emt 0:00:00]} 50. a4 {[%emt 0:00:24]} Ra2 {[%emt 0:00:50]} 51. Rb7 {[%emt 0:01:17]} Ke6 {[%emt 0:02:50]} 52. Bd4 {[%emt 0:00:20]} Rxa4 {[%emt 0:01:23]} 53. Bc5 {[%emt 0:00:52]} Be4 {[%emt 0:00:41]} 54. f5+ {[%emt 0:00:56]} Kf7 {[%emt 0:00:48]} 55. Rxe7+ {[%emt 0:00:18]} Kg8 {[%emt 0:00:01]} 56. Kf4 {[%emt 0:00:33]} a5 {[%emt 0:00:50]} 57. Ra7 {[%emt 0:00:28]} 1-0

[Event "SRB-ch Semifinal 2022"]
[Site "Paracin"]
[Date "2022.03.17"]
[Round "1.9"]
[White "Nikolic, Zoran S"]
[Black "Djordjevic, Vuk"]
[Result "0-1"]
[ECO "E52"]
[WhiteElo "2087"]
[BlackElo "2382"]
[Annotator "ChessBase"]
[PlyCount "104"]
[EventDate "2022.03.17"]
[EventType "swiss"]
[EventCountry "SRB"]
[SourceTitle "playchess.com"]
[Source "ChessBase"]
[SourceQuality "1"]
[TimeControl "40/5400+30:1800+30"]

1. d4 {[%emt 0:00:04]} Nf6 {[%emt 0:00:17]} 2. Nf3 {[%emt 0:00:12]} e6 {[%emt 0:00:26]} 3. c4 {[%emt 0:00:20]} b6 {[%emt 0:00:33]} 4. Nc3 {[%emt 0:00:39]} Bb7 {[%emt 0:00:17]} 5. e3 {[%emt 0:01:07]} Bb4 {[%emt 0:05:58]} 6. Bd2 {[%emt 0:00:30]} O-O {[%emt 0:00:53]} 7. Bd3 {[%emt 0:00:37]} d5 {[%emt 0:00:57]} 8. O-O {[%emt 0:00:27]} dxc4 {[%emt 0:05:20]} 9. Bxc4 {[%emt 0:00:58]} Nbd7 {[%emt 0:03:28]} 10. a3 {[%emt 0:02:10]} Bd6 {[%emt 0:02:05]} 11. Nb5 {[%emt 0:04:43]} Be7 {[%emt 0:01:06]} 12. Bb4 {[%emt 0:04:28]} Bxb4 {[%emt 0:04:56]} 13. axb4 {[%emt 0:00:02]} a6 {[%emt 0:00:56]} 14. Nc3 {[%emt 0:00:17]} b5 {[%emt 0:12:12]} 15. Bd3 {[%emt 0:00:28]} Qe7 {[%emt 0:19:56]} 16. Qb3 {[%emt 0:09:29]} Rfd8 {[%emt 0:10:22]} 17. e4 {[%emt 0:01:04]} e5 {[%emt 0:00:53]} 18. d5 {[%emt 0:04:06]} c6 {[%emt 0:01:19]} 19. Rfe1 {[%emt 0:05:42]} Rac8 {[%emt 0:05:04]} 20. Rad1 {[%emt 0:05:11]} Nb6 {[%emt 0:04:28]} 21. dxc6 {[%emt 0:02:23]} Bxc6 {[%emt 0:02:03]} 22. Bc2 {[%emt 0:07:12]} Nc4 {[%emt 0:00:52]} 23. Rxd8+ {[%emt 0:03:10]} Rxd8 {[%emt 0:00:11]} 24. Na4 {[%emt 0:02:33]} Nd7 {[%emt 0:05:51]} 25. Rd1 {[%emt 0:05:06]} Rc8 {[%emt 0:02:07]} 26. Nc3 {[%emt 0:06:21]} Ndb6 {[%emt 0:01:13]} 27. Nd5 {[%emt 0:01:23]} Bxd5 {[%emt 0:01:38]} 28. exd5 {[%emt 0:00:03]} g6 {[%emt 0:02:25]} 29. Nd2 {[%emt 0:10:01]} Nxd5 {[%emt 0:02:12]} 30. Nxc4 {[%emt 0:00:41]} bxc4 {[%emt 0:00:14]} 31. Qa4 {[%emt 0:02:49]} Nxb4 {[%emt 0:00:44]} 32. Be4 {[%emt 0:01:23]} Qc5 {[%emt 0:00:43]} 33. Bb7 {[%emt 0:01:30]} Rb8 {[%emt 0:01:27]} 34. Qd7 {[%emt 0:01:34]} Qb5 {[%emt 0:01:30]} 35. Be4 {[%emt 0:06:29]} Qxd7 {[%emt 0:00:39]} 36. Rxd7 {[%emt 0:00:07]} Rb5 {[%emt 0:01:24]} 37. Rc7 {[%emt 0:00:49]} Ra5 {[%emt 0:01:26]} 38. g4 {[%emt 0:00:12]} Nd3 {[%emt 0:00:48]} 39. Rxc4 {[%emt 0:00:40]} Nxb2 {[%emt 0:00:17]} 40. Rb4 {[%emt 0:00:31]} Na4 {[%emt 0:00:39]} 41. g5 {[%emt 0:31:27]} Nc5 {[%emt 0:30:33]} 42. Bd5 {[%emt 0:00:21]} Nd3 {[%emt 0:00:00]} 43. Rb8+ {[%emt 0:00:00]} Kg7 {[%emt 0:00:00]} 44. Bc4 {[%emt 0:00:00]} e4 {[%emt 0:00:00]} 45. h4 {[%emt 0:00:00]} Ra4 {[%emt 0:00:00]} 46. Bd5 {[%emt 0:00:00]} Rd4 {[%emt 0:03:08]} 47. Ba2 {[%emt 0:00:00]} Nc1 {[%emt 0:00:00]} 48. Bb1 {[%emt 0:00:00]} Ne2+ {[%emt 0:00:00]} 49. Kg2 {[%emt 0:00:00]} Nc3 {[%emt 0:00:00]} 50. Bc2 {[%emt 0:00:00]} e3 {[%emt 0:00:00]} 51. Bb3 {[%emt 0:00:00]} e2 {[%emt 0:00:00]} 52. Re8 {[%emt 0:00:00]} Re4 {[%emt 0:00:00]} 0-1

[Event "SRB-ch Semifinal 2022"]
[Site "Paracin"]
[Date "2022.03.18"]
[Round "2.9"]
[White "Djokic, Mihailo"]
[Black "Tadic, Stefan"]
[Result "0-1"]
[ECO "C48"]
[WhiteElo "2279"]
[BlackElo "2336"]
[Annotator "ChessBase"]
[PlyCount "70"]
[EventDate "2022.03.17"]
[EventType "swiss"]
[EventCountry "SRB"]
[SourceTitle "playchess.com"]
[Source "ChessBase"]
[SourceQuality "1"]
[TimeControl "40/5400+30:1800+30"]

1. e4 {[%emt 0:00:03]} e5 {[%emt 0:00:21]} 2. Nf3 {[%emt 0:00:12]} Nc6 {[%emt 0:00:31]} 3. Nc3 {[%emt 0:00:05]} Nf6 {[%emt 0:00:49]} 4. Bb5 {[%emt 0:00:06]} Nd4 {[%emt 0:00:46]} 5. Ba4 {[%emt 0:00:21]} Bc5 {[%emt 0:00:54]} 6. Nxe5 {[%emt 0:00:06]} O-O {[%emt 0:00:50]} 7. Nd3 {[%emt 0:00:01]} Bb6 {[%emt 0:00:07]} 8. e5 {[%emt 0:00:03]} Ne8 {[%emt 0:00:50]} 9. Nd5 {[%emt 0:05:50]} d6 {[%emt 0:00:37]} 10. Ne3 {[%emt 0:07:13]} c5 {[%emt 0:00:41]} 11. c3 {[%emt 0:07:51]} Nc6 {[%emt 0:00:40]} 12. exd6 {[%emt 0:05:25]} Qxd6 {[%emt 0:01:09]} 13. Qe2 {[%emt 0:13:01]} Bc7 {[%emt 0:39:13]} 14. f4 {[%emt 0:07:49]} b6 {[%emt 0:19:06]} 15. Qf3 {[%emt 0:03:11]} Bb7 {[%emt 0:06:33]} 16. Ne5 {[%emt 0:00:55]} Nd8 {[%emt 0:10:23]} 17. Qg3 {[%emt 0:00:29]} Bc8 {[%emt 0:01:59]} 18. O-O {[%emt 0:05:21]} f6 {[%emt 0:04:28]} 19. Bb3+ {[%emt 0:01:22]} Nf7 {[%emt 0:02:55]} 20. Nxf7 {[%emt 0:00:37]} Rxf7 {[%emt 0:00:11]} 21. Qf3 {[%emt 0:00:16]} Rb8 {[%emt 0:00:59]} 22. Bxf7+ {[%emt 0:00:05]} Kxf7 {[%emt 0:00:04]} 23. Qh5+ {[%emt 0:00:06]} Kf8 {[%emt 0:00:16]} 24. Qxh7 {[%emt 0:00:21]} Ba6 {[%emt 0:00:17]} 25. Nf5 {[%emt 0:00:55]} Qe6 {[%emt 0:03:36]} 26. g3 {[%emt 0:17:54]} Bxf1 {[%emt 0:01:15]} 27. Kxf1 {[%emt 0:00:08]} Qe4 {[%emt 0:02:33]} 28. Qh5 {[%emt 0:00:41]} Rd8 {[%emt 0:00:46]} 29. d4 {[%emt 0:24:33]} Rd5 {[%emt 0:00:45]} 30. Qh8+ {[%emt 0:00:00]} Kf7 {[%emt 0:00:01]} 31. Ne3 {[%emt 0:00:00]} Qf3+ {[%emt 0:00:05]} 32. Kg1 {[%emt 0:00:00]} Rh5 {[%emt 0:00:03]} 33. Qxh5+ {[%emt 0:00:00]} Qxh5 {[%emt 0:00:02]} 34. dxc5 {[%emt 0:00:00]} bxc5 {[%emt 0:00:54]} 35. Bd2 {[%emt 0:00:00]} Qe2 {[%emt 0:00:07]} 0-1

[Event "SRB-ch Semifinal 2022"]
[Site "Paracin"]
[Date "2022.03.18"]
[Round "2.10"]
[White "Zlatanovic, Boroljub"]
[Black "Gajcin, Marina"]
[Result "1/2-1/2"]
[ECO "A29"]
[WhiteElo "2338"]
[BlackElo "2254"]
[Annotator "ChessBase"]
[PlyCount "67"]
[EventDate "2022.03.17"]
[EventType "swiss"]
[EventCountry "SRB"]
[SourceTitle "playchess.com"]
[Source "ChessBase"]
[SourceQuality "1"]
[TimeControl "40/5400+30:1800+30"]

1. c4 {[%emt 1:31:00]} Nf6 {[%emt 0:02:12]} 2. Nc3 {[%emt 0:00:30]} e5 {[%emt 0:01:54]} 3. g3 {[%emt 0:00:00]} Bb4 {[%emt 0:01:00]} 4. Bg2 {[%emt 0:00:00]} O-O {[%emt 1:27:24]} 5. Nf3 {[%emt 0:01:30]} Re8 {[%emt 0:00:30]} 6. O-O {[%emt 0:00:00]} e4 {[%emt 0:00:30]} 7. Nd4 {[%emt 0:01:00]} Nc6 {[%emt 0:00:30]} 8. Nc2 {[%emt 0:00:30]} Bxc3 {[%emt 0:00:00]} 9. dxc3 {[%emt 0:00:30]} d6 {[%emt 0:01:00]} 10. Bg5 {[%emt 0:00:30]} h6 {[%emt 0:00:30]} 11. Bxf6 {[%emt 0:00:00]} Qxf6 {[%emt 0:00:00]} 12. Ne3 {[%emt 0:01:00]} Bf5 {[%emt 0:01:00]} 13. Qd2 {[%emt 0:00:00]} Bg6 {[%emt 0:00:30]} 14. f4 {[%emt 0:01:00]} exf3 {[%emt 0:00:30]} 15. exf3 {[%emt 0:00:30]} Qg5 {[%emt 0:00:00]} 16. Rae1 a5 {[%emt 0:01:00]} 17. Rf2 {[%emt 0:01:00]} Qc5 {[%emt 0:00:30]} 18. f4 {[%emt 0:00:30]} Be4 {[%emt 0:00:30]} 19. Rfe2 {[%emt 0:00:30]} a4 {[%emt 0:00:30]} 20. Bxe4 {[%emt 0:00:00]} Rxe4 {[%emt 0:00:00]} 21. Qd5 {[%emt 0:01:00]} Rae8 {[%emt 0:00:00]} 22. Qxc5 {[%emt 0:00:00]} dxc5 {[%emt 0:00:00]} 23. Kf2 {[%emt 0:01:00]} Na5 {[%emt 0:02:00]} 24. Nd5 {[%emt 0:00:00]} Rxe2+ {[%emt 0:00:00]} 25. Rxe2 {[%emt 0:00:00]} Rxe2+ {[%emt 0:00:00]} 26. Kxe2 {[%emt 0:00:00]} Nxc4 {[%emt 0:01:30]} 27. b3 {[%emt 0:02:00]} axb3 {[%emt 0:00:30]} 28. axb3 {[%emt 0:00:30]} Nd6 {[%emt 0:00:00]} 29. Nxc7 {[%emt 0:00:30]} Kf8 {[%emt 0:00:00]} 30. Nd5 {[%emt 0:00:30]} Ke8 {[%emt 0:00:00]} 31. Kd3 {[%emt 0:00:00]} Kd7 {[%emt 0:02:00]} 32. Nb6+ {[%emt 0:01:00]} Kc6 {[%emt 0:00:30]} 33. Nc4 {[%emt 0:00:00]} Nxc4 {[%emt 0:00:30]} 34. Kxc4 {[%emt 0:00:00]} 1/2-1/2

[Event "SRB-ch Semifinal 2022"]
[Site "Paracin"]
[Date "2022.03.18"]
[Round "3.5"]
[White "Ratkovic, Milovan"]
[Black "Zlatanovic, Boroljub"]
[Result "1-0"]
[ECO "B06"]
[WhiteElo "2440"]
[BlackElo "2338"]
[Annotator "ChessBase"]
[PlyCount "67"]
[EventDate "2022.03.17"]
[EventType "swiss"]
[EventCountry "SRB"]
[SourceTitle "playchess.com"]
[Source "ChessBase"]
[SourceQuality "1"]
[TimeControl "40/5400+30:1800+30"]

1. d4 {[%emt 0:03:40]} g6 {[%emt 0:00:09]} 2. e4 {[%emt 0:00:28]} Bg7 {[%emt 0:00:10]} 3. Nc3 {[%emt 0:00:27]} d6 {[%emt 0:00:09]} 4. Be3 {[%emt 0:01:27]} c6 {[%emt 0:00:22]} 5. f4 {[%emt 0:03:00]} d5 {[%emt 0:00:58]} 6. e5 {[%emt 0:00:51]} h5 {[%emt 0:00:18]} 7. Nf3 {[%emt 0:01:23]} Nh6 {[%emt 0:01:57]} 8. h3 {[%emt 0:15:47]} Nf5 {[%emt 0:03:09]} 9. Bf2 {[%emt 0:01:42]} h4 {[%emt 0:00:28]} 10. Bd3 {[%emt 0:01:23]} e6 {[%emt 0:02:17]} 11. O-O {[%emt 0:01:57]} Bf8 {[%emt 0:01:46]} 12. Ne2 {[%emt 0:03:22]} Na6 {[%emt 0:06:06]} 13. a3 {[%emt 0:01:46]} Nc7 {[%emt 0:01:56]} 14. b3 {[%emt 0:03:56]} Be7 {[%emt 0:01:32]} 15. c4 {[%emt 0:06:21]} b6 {[%emt 0:07:43]} 16. Qc2 {[%emt 0:02:26]} Bb7 {[%emt 0:01:58]} 17. Rfd1 {[%emt 0:00:38]} Rc8 {[%emt 0:01:42]} 18. c5 {[%emt 0:06:51]} b5 {[%emt 0:12:59]} 19. b4 {[%emt 0:00:56]} Kf8 {[%emt 0:01:28]} 20. Kh2 {[%emt 0:00:11]} Ne8 {[%emt 0:00:47]} 21. a4 {[%emt 0:01:26]} a6 {[%emt 0:01:04]} 22. Ra3 {[%emt 0:05:42]} Neg7 {[%emt 0:01:20]} 23. Rda1 {[%emt 0:01:07]} Kg8 {[%emt 0:07:51]} 24. Qd2 {[%emt 0:00:41]} f6 {[%emt 0:05:32]} 25. axb5 {[%emt 0:05:40]} axb5 {[%emt 0:00:12]} 26. Ra7 {[%emt 0:00:38]} Ra8 {[%emt 0:10:17]} 27. Rxa8 {[%emt 0:02:25]} Bxa8 {[%emt 0:00:02]} 28. Ra7 {[%emt 0:01:04]} Kh7 {[%emt 0:02:25]} 29. Nxh4 {[%emt 0:03:29]} fxe5 {[%emt 0:00:23]} 30. Nxf5 {[%emt 0:01:35]} exf5 {[%emt 0:01:28]} 31. dxe5 {[%emt 0:01:12]} Re8 {[%emt 0:00:44]} 32. Nd4 {[%emt 0:01:00]} Qb8 {[%emt 0:00:15]} 33. Ra1 {[%emt 0:04:56]} Bb7 {[%emt 0:01:14]} 34. g4 {[%emt 0:01:59]} 1-0

[Event "SRB-ch Semifinal 2022"]
[Site "Paracin"]
[Date "2022.03.18"]
[Round "3.6"]
[White "Blagojevic, Tijana"]
[Black "Stankovic, Milos"]
[Result "1/2-1/2"]
[ECO "C02"]
[WhiteElo "2260"]
[BlackElo "2412"]
[Annotator "ChessBase"]
[PlyCount "105"]
[EventDate "2022.03.17"]
[EventType "swiss"]
[EventCountry "SRB"]
[SourceTitle "playchess.com"]
[Source "ChessBase"]
[SourceQuality "1"]
[TimeControl "40/5400+30:1800+30"]

1. e4 {[%emt 1:31:00]} e6 {[%emt 0:01:09]} 2. d4 {[%emt 0:00:00]} d5 {[%emt 0:00:31]} 3. e5 {[%emt 0:00:00]} c5 {[%emt 0:03:39]} 4. c3 {[%emt 0:00:00]} Nc6 {[%emt 0:00:17]} 5. Nf3 {[%emt 0:00:00]} Bd7 {[%emt 0:00:31]} 6. Be2 {[%emt 0:00:00]} Nge7 {[%emt 0:02:34]} 7. Na3 {[%emt 0:00:00]} cxd4 {[%emt 0:01:50]} 8. cxd4 {[%emt 0:00:00]} Nf5 {[%emt 0:01:26]} 9. Nc2 {[%emt 0:00:00]} Be7 {[%emt 0:01:22]} 10. O-O {[%emt 0:00:00]} O-O {[%emt 0:05:58]} 11. Bd3 {[%emt 0:00:00]} Rc8 {[%emt 0:01:53]} 12. Rb1 {[%emt 0:00:00]} Nb4 {[%emt 0:10:01]} 13. Nxb4 {[%emt 0:00:00]} Bxb4 {[%emt 0:00:10]} 14. Bg5 {[%emt 0:00:00]} Be7 {[%emt 0:08:28]} 15. Bxe7 {[%emt 0:00:00]} Nxe7 {[%emt 0:01:02]} 16. Qb3 {[%emt 0:00:00]} Nc6 {[%emt 0:10:26]} 17. Rfc1 {[%emt 0:00:00]} Rc7 {[%emt 0:08:30]} 18. Rc3 {[%emt 0:00:00]} h6 {[%emt 0:03:53]} 19. Rbc1 {[%emt 0:00:00]} Qe7 {[%emt 0:02:50]} 20. Bb1 {[%emt 0:00:00]} Rb8 {[%emt 0:06:38]} 21. Qc2 {[%emt 0:00:00]} g6 {[%emt 0:00:10]} 22. h4 {[%emt 0:00:00]} h5 {[%emt 0:08:00]} 23. Qd2 {[%emt 0:00:00]} Kg7 {[%emt 0:00:07]} 24. Qf4 {[%emt 0:00:00]} Rcc8 {[%emt 0:00:59]} 25. Ng5 {[%emt 0:00:00]} Be8 {[%emt 0:01:21]} 26. g4 {[%emt 0:00:00]} f6 {[%emt 0:06:08]} 27. exf6+ {[%emt 0:00:00]} Qxf6 {[%emt 0:00:06]} 28. gxh5 {[%emt 0:00:00]} Qxf4 {[%emt 0:01:13]} 29. Nxe6+ {[%emt 0:00:00]} Kh6 {[%emt 0:00:10]} 30. Nxf4 {[%emt 0:00:00]} gxh5 {[%emt 0:00:06]} 31. Rd1 {[%emt 0:00:00]} Bf7 {[%emt 0:00:50]} 32. Kh2 {[%emt 0:00:00]} Rg8 {[%emt 0:02:05]} 33. Rg3 {[%emt 0:00:00]} Rbf8 {[%emt 0:00:32]} 34. a3 {[%emt 0:00:00]} a6 {[%emt 0:02:44]} 35. Ba2 {[%emt 0:00:00]} Ne7 {[%emt 0:00:34]} 36. Rdg1 {[%emt 0:00:00]} Nf5 {[%emt 0:00:45]} 37. Rxg8 {[%emt 0:00:18]} Rxg8 {[%emt 0:00:06]} 38. Rxg8 {[%emt 0:01:02]} Bxg8 {[%emt 0:00:06]} 39. Kh3 {[%emt 0:00:28]} Nxd4 {[%emt 0:01:25]} 40. Bxd5 {[%emt 0:00:14]} Bxd5 {[%emt 0:00:42]} 41. Nxd5 {[%emt 0:30:04]} Kg6 {[%emt 0:30:06]} 42. Nf4+ {[%emt 0:00:57]} Kh6 {[%emt 0:00:01]} 43. Nd3 {[%emt 0:00:50]} b6 {[%emt 0:01:48]} 44. Nf4 {[%emt 0:08:30]} b5 {[%emt 0:00:56]} 45. Nd5 {[%emt 0:02:23]} Kg6 {[%emt 0:01:25]} 46. Kg3 {[%emt 0:01:31]} Nf5+ {[%emt 0:02:16]} 47. Kf4 {[%emt 0:00:00]} a5 {[%emt 0:00:00]} 48. b4 {[%emt 0:00:00]} axb4 {[%emt 0:00:00]} 49. axb4 {[%emt 0:00:00]} Nxh4 {[%emt 0:00:00]} 50. Nc3 {[%emt 0:00:00]} Ng2+ {[%emt 0:00:00]} 51. Kg3 {[%emt 0:00:00]} Ne1 {[%emt 0:00:00]} 52. Nxb5 {[%emt 0:00:00]} Nd3 {[%emt 0:00:00]} 53. Nd4 {[%emt 0:00:00]} 1/2-1/2

[Event "SRB-ch Semifinal 2022"]
[Site "Paracin"]
[Date "2022.03.18"]
[Round "3.7"]
[White "Radovanovic, Nikola"]
[Black "Rabrenovic, Vladan"]
[Result "1-0"]
[ECO "C54"]
[WhiteElo "2413"]
[BlackElo "2299"]
[Annotator "ChessBase"]
[PlyCount "73"]
[EventDate "2022.03.17"]
[EventType "swiss"]
[EventCountry "SRB"]
[SourceTitle "playchess.com"]
[Source "ChessBase"]
[SourceQuality "1"]
[TimeControl "40/5400+30:1800+30"]

1. e4 {[%emt 0:00:59]} e5 {[%emt 0:01:55]} 2. Nf3 {[%emt 0:00:10]} Nc6 {[%emt 0:00:06]} 3. Bc4 {[%emt 0:03:48]} Bc5 {[%emt 0:00:37]} 4. c3 {[%emt 0:00:27]} Nf6 {[%emt 0:00:08]} 5. d3 {[%emt 0:00:10]} d6 {[%emt 0:00:18]} 6. Nbd2 {[%emt 0:01:44]} a6 {[%emt 0:00:13]} 7. Bb3 {[%emt 0:01:44]} O-O {[%emt 0:00:09]} 8. h3 {[%emt 0:01:00]} h6 {[%emt 0:00:08]} 9. Nf1 {[%emt 0:02:11]} Re8 {[%emt 0:01:11]} 10. Ng3 {[%emt 0:02:43]} Ba7 {[%emt 0:01:27]} 11. O-O {[%emt 0:00:44]} Be6 {[%emt 0:01:04]} 12. Re1 {[%emt 0:06:00]} Bxb3 {[%emt 0:07:42]} 13. Qxb3 {[%emt 0:01:16]} b5 {[%emt 0:01:56]} 14. Be3 {[%emt 0:13:19]} Qd7 {[%emt 0:19:57]} 15. Bxa7 {[%emt 0:07:14]} Rxa7 {[%emt 0:00:10]} 16. d4 {[%emt 0:00:31]} Rb7 {[%emt 0:08:02]} 17. Rad1 {[%emt 0:02:58]} Qc8 {[%emt 0:03:58]} 18. Qc2 {[%emt 0:05:56]} g6 {[%emt 0:23:26]} 19. Qc1 {[%emt 0:06:12]} Kh7 {[%emt 0:01:24]} 20. Nh4 {[%emt 0:02:19]} b4 {[%emt 0:11:27]} 21. f4 {[%emt 0:01:02]} bxc3 {[%emt 0:00:22]} 22. bxc3 {[%emt 0:00:18]} Ng8 {[%emt 0:02:53]} 23. fxe5 {[%emt 0:04:16]} dxe5 {[%emt 0:00:37]} 24. d5 {[%emt 0:00:39]} Nd8 {[%emt 0:01:41]} 25. c4 {[%emt 0:00:22]} c5 {[%emt 0:07:31]} 26. Qc3 {[%emt 0:07:22]} f6 {[%emt 0:00:02]} 27. Rb1 {[%emt 0:06:09]} Ree7 {[%emt 0:01:09]} 28. Qa5 {[%emt 0:01:04]} Rec7 {[%emt 0:02:03]} 29. Rxb7 {[%emt 0:06:02]} Rxb7 {[%emt 0:01:14]} 30. Qxa6 {[%emt 0:00:58]} Qc7 {[%emt 0:01:16]} 31. Rd1 {[%emt 0:01:54]} Ra7 {[%emt 0:00:54]} 32. Qb5 {[%emt 0:00:04]} Nf7 {[%emt 0:00:20]} 33. Qe8 {[%emt 0:02:36]} Qe7 {[%emt 0:00:58]} 34. Qc8 {[%emt 0:00:31]} Rc7 {[%emt 0:00:31]} 35. Qg4 {[%emt 0:00:22]} g5 {[%emt 0:00:35]} 36. Qf5+ {[%emt 0:00:06]} Kg7 {[%emt 0:00:19]} 37. Nh5+ {[%emt 0:00:06]} 1-0